fUST/lending_fUST_20260415
["ID","MTS","AMOUNT","RATE_DAILY","PERIOD"]
[420508688,1776184247151,-268.4695899,0.0001178,2]
[420508690,1776184247161,-500.0,0.0001178,2]
[420508692,1776184247178,-500.0,0.0001178,2]
[420508694,1776184247204,-500.0,0.0001178,2]
[420508696,1776184247218,-500.0,0.0001178,2]
[420508698,1776184247235,-500.0,0.0001178,2]
[420508700,1776184247268,-500.0,0.0001178,2]
[420508702,1776184247283,-4309.33,0.0001178,2]
[420508704,1776184247303,-500.0,0.0001178,2]
[420508706,1776184247314,-500.0,0.0001178,2]
[420508707,1776184247327,-1000.0,0.0001178,2]
[420508709,1776184247356,-500.0,0.0001178,2]
[420508711,1776184247373,-500.0,0.0001178,2]
[420508713,1776184247430,-1128.7,0.0001178,2]
[420508715,1776184247524,-500.0,0.0001178,2]
[420508718,1776184247552,-500.0,0.0001178,2]
[420508719,1776184247587,-500.0,0.0001178,2]
[420508722,1776184247612,-500.0,0.0001178,2]
[420508724,1776184247656,-500.0,0.0001178,2]
[420508726,1776184247722,-654.69,0.0001178,2]
[420508728,1776184247760,-500.0,0.0001178,2]
[420508730,1776184247782,-689.6,0.0001178,2]
[420508732,1776184247796,-500.0,0.0001178,2]
[420508734,1776184247811,-813.93,0.0001178,2]
[420508736,1776184247825,-500.0,0.0001178,2]
[420508738,1776184247838,-535.72,0.0001178,2]
[420508740,1776184247854,-208.2424297,0.0001178,2]
[420508742,1776184247865,-500.0,0.0001178,2]
[420508744,1776184247878,-151.0,0.0001178,2]
[420508747,1776184247890,-151.0,0.0001178,2]
[420508749,1776184247902,-500.0,0.0001178,2]
[420508750,1776184247912,-500.0,0.0001178,2]
[420508753,1776184247924,-500.0,0.0001178,2]
[420508754,1776184247933,-500.0,0.0001178,2]
[420508757,1776184247945,-500.0,0.0001178,2]
[420508759,1776184247955,-323.52663882,0.0001178,2]
[420508761,1776184247966,-500.0,0.0001178,2]
[420508763,1776184247976,-500.0,0.0001178,2]
[420508764,1776184247986,-6100.67,0.0001178,2]
[420508767,1776184247997,-500.0,0.0001178,2]
[420508769,1776184248007,-869.08,0.0001178,2]
[420508771,1776184248017,-6021.99,0.0001178,2]
[420508773,1776184248027,-500.0,0.0001178,2]
[420508775,1776184248038,-500.0,0.0001178,2]
[420508777,1776184248048,-500.0,0.0001178,2]
[420508779,1776184248057,-500.0,0.0001178,2]
[420508781,1776184248067,-4732.63,0.0001178,2]
[420508783,1776184248078,-500.0,0.0001178,2]
[420508785,1776184248088,-834.7,0.0001178,2]
[420508786,1776184248099,-500.0,0.0001178,2]
[420508789,1776184248109,-500.0,0.0001178,2]
[420508791,1776184248120,-1248.02,0.0001178,2]
[420508793,1776184248130,-500.0,0.0001178,2]
[420508795,1776184248139,-4215.81,0.0001178,2]
[420508797,1776184248149,-3888.18,0.0001178,2]
[420508799,1776184248160,-5867.09,0.0001178,2]
[420508801,1776184248170,-500.0,0.0001178,2]
[420508803,1776184248180,-389.02626177,0.0001178,2]
[420508805,1776184248190,-18904.59,0.0001178,2]
[420508807,1776184248201,-1695.67,0.0001178,2]
[420508809,1776184248211,-5451.5,0.0001178,2]
[420508811,1776184248221,-500.0,0.0001178,2]
[420508813,1776184248231,-6941.33,0.0001178,2]
[420508815,1776184248241,-500.0,0.0001178,2]
[420508817,1776184248251,-1019.11,0.0001178,2]
[420508819,1776184248261,-14705.82,0.0001178,2]
[420508821,1776184248270,-500.0,0.0001178,2]
[420508823,1776184248280,-500.0,0.0001178,2]
[420508825,1776184248290,-13775.47,0.0001178,2]
[420508827,1776184248299,-500.0,0.0001178,2]
[420508829,1776184248309,-500.0,0.0001178,2]
[420508831,1776184248319,-10354.93,0.0001178,2]
[420508833,1776184248329,-500.0,0.0001178,2]
[420508835,1776184248338,-6089.32,0.0001178,2]
[420508837,1776184248348,-3217.7,0.0001178,2]
[420508839,1776184248358,-500.0,0.0001178,2]
[420508841,1776184248368,-7417.02,0.0001178,2]
[420508843,1776184248377,-500.0,0.0001178,2]
[420508844,1776184248387,-819.79,0.0001178,2]
[420508845,1776184248398,-1900.53,0.0001178,2]
[420508846,1776184248408,-500.0,0.0001178,2]
[420508848,1776184248417,-500.0,0.0001178,2]
[420508849,1776184248427,-151.0,0.000118,2]
[420508850,1776184248437,-151.0,0.000118,2]
[420508851,1776184248448,-335.83004427,0.00011821,2]
[420508852,1776184248458,-1000.0,0.00011821,2]
[420508853,1776184248468,-1000.0,0.00011821,2]
[420508854,1776184248478,-360.28346831,0.00011821,2]
[420508855,1776184248488,-259.19525566,0.00011821,2]
[420508856,1776184248498,-1000.0,0.00011821,2]
[420508857,1776184248507,-1000.0,0.00011821,2]
[420508858,1776184248516,-1000.0,0.00011821,2]
[420508859,1776184248526,-1000.0,0.00011821,2]
[420508860,1776184248536,-151.0,0.000119,2]
[420508861,1776184248546,-151.0,0.000119,2]
[420508862,1776184248556,-864.0,0.00011971,2]
[420508863,1776184248567,-17900.0,0.00012,2]
[420508864,1776184248577,-1127.4473,0.00012054,2]
[420508865,1776184248587,-309.63177271,0.00012054,2]
[420508866,1776184248597,-500.0,0.00012054,2]
[420508867,1776184248606,-500.0,0.00012054,2]
[420508868,1776184248617,-500.0,0.00012054,2]
[420508869,1776184248627,-500.0,0.00012054,2]
[420508870,1776184248636,-437.63677497,0.00012054,2]
[420508871,1776184248646,-4309.33,0.00012054,2]
[420508872,1776184248655,-500.0,0.00012054,2]
[420508873,1776184248668,-500.0,0.00012054,2]
[420508874,1776184248677,-1000.0,0.00012054,2]
[420508875,1776184248691,-500.0,0.00012054,2]
[420508876,1776184248705,-500.0,0.00012054,2]
[420508877,1776184248718,-1128.7,0.00012054,2]
[420508878,1776184248739,-500.0,0.00012054,2]
[420508879,1776184248753,-500.0,0.00012054,2]
[420508880,1776184248763,-500.0,0.00012054,2]
[420508881,1776184248797,-500.0,0.00012054,2]
[420508882,1776184248826,-515.60872216,0.00012054,2]
[420508883,1776184248846,-654.69,0.00012054,2]
[420508884,1776184248872,-500.0,0.00012054,2]
[420508885,1776184248897,-689.6,0.00012054,2]
[420508886,1776184248917,-500.0,0.00012054,2]
[420508887,1776184248953,-813.93,0.00012054,2]
[420508888,1776184248992,-500.0,0.00012054,2]
[420508889,1776184249021,-535.72,0.00012054,2]
[420508890,1776184249035,-500.0,0.00012054,2]
[420508891,1776184249053,-151.0,0.00012054,2]
[420508892,1776184249067,-151.0,0.00012054,2]
[420508893,1776184249077,-500.0,0.00012054,2]
[420508894,1776184249099,-500.0,0.00012054,2]
[420508895,1776184249108,-500.0,0.00012054,2]
[420508896,1776184249117,-500.0,0.00012054,2]
[420508897,1776184249146,-500.0,0.00012054,2]
[420508898,1776184249158,-500.0,0.00012054,2]
[420508899,1776184249193,-500.0,0.00012054,2]
[420508900,1776184249230,-6100.67,0.00012054,2]
[420508901,1776184249343,-500.0,0.00012054,2]
[420508902,1776184249522,-869.08,0.00012054,2]
[420508903,1776184249612,-6021.99,0.00012054,2]
[420508904,1776184249690,-500.0,0.00012054,2]
[420508905,1776184249728,-500.0,0.00012054,2]
[420508906,1776184249794,-500.0,0.00012054,2]
[420508907,1776184249861,-500.0,0.00012054,2]
[420508908,1776184249892,-4732.63,0.00012054,2]
[420508910,1776184249903,-500.0,0.00012054,2]
[420508911,1776184249930,-834.7,0.00012054,2]
[420508912,1776184249950,-500.0,0.00012054,2]
[420508913,1776184249978,-500.0,0.00012054,2]
[420508914,1776184250001,-1248.02,0.00012054,2]
[420508915,1776184250031,-500.0,0.00012054,2]
[420508916,1776184250090,-4215.81,0.00012054,2]
[420508917,1776184250130,-3888.18,0.00012054,2]
[420508918,1776184250161,-5867.09,0.00012054,2]
[420508919,1776184250177,-500.0,0.00012054,2]
[420508920,1776184250239,-18904.59,0.00012054,2]
[420508921,1776184250266,-1695.67,0.00012054,2]
[420508922,1776184250277,-5451.5,0.00012054,2]
[420508923,1776184250288,-500.0,0.00012054,2]
[420508924,1776184250305,-6941.33,0.00012054,2]
[420508925,1776184250318,-500.0,0.00012054,2]
[420508926,1776184250329,-1019.11,0.00012054,2]
[420508927,1776184250339,-14705.82,0.00012054,2]
[420508928,1776184250353,-500.0,0.00012054,2]
[420508929,1776184250365,-500.0,0.00012054,2]
[420508930,1776184250375,-13775.47,0.00012054,2]
[420508931,1776184250385,-500.0,0.00012054,2]
[420508932,1776184250398,-500.0,0.00012054,2]
[420508933,1776184250408,-10354.93,0.00012054,2]
[420508934,1776184250417,-500.0,0.00012054,2]
[420508935,1776184250429,-6089.32,0.00012054,2]
[420508936,1776184250442,-3217.7,0.00012054,2]
[420508937,1776184250452,-500.0,0.00012054,2]
[420508938,1776184250462,-7417.02,0.00012054,2]
[420508939,1776184250476,-500.0,0.00012054,2]
[420508940,1776184250488,-819.79,0.00012054,2]
[420508941,1776184250497,-1900.53,0.00012054,2]
[420508942,1776184250511,-500.0,0.00012054,2]
[420508943,1776184250521,-500.0,0.00012054,2]
[420508944,1776184250534,-151.0,0.000121,2]
[420508945,1776184250545,-800.0,0.00012143,2]
[420508946,1776184250558,-184.0,0.00012153,2]
[420508947,1776184250571,-441.0,0.00012153,2]
[420508948,1776184250582,-151.0,0.000122,2]
[420508950,1776184250594,-549.728085,0.00012207,2]
[420508951,1776184250607,-2312.83697232,0.00012237,2]
[420508952,1776184250622,-1127.4473,0.00012328,2]
[420508953,1776184250632,-500.0,0.00012328,2]
[420508954,1776184250641,-500.0,0.00012328,2]
[420508955,1776184250651,-500.0,0.00012328,2]
[420508956,1776184250663,-500.0,0.00012328,2]
[420508957,1776184250673,-4309.33,0.00012328,2]
[420508958,1776184250683,-500.0,0.00012328,2]
[420508959,1776184250692,-500.0,0.00012328,2]
[420508960,1776184250702,-1000.0,0.00012328,2]
[420508961,1776184250718,-500.0,0.00012328,2]
[420508962,1776184250727,-250.17073306,0.00012328,2]
[420508963,1776184250737,-1128.7,0.00012328,2]
[420508964,1776184250749,-500.0,0.00012328,2]
[420508965,1776184250762,-268.64937647,0.00012328,2]
[420508966,1776184250772,-654.69,0.00012328,2]
[420508967,1776184250781,-500.0,0.00012328,2]
[420508968,1776184250795,-689.6,0.00012328,2]
[420508969,1776184250804,-813.93,0.00012328,2]
[420508970,1776184250814,-500.0,0.00012328,2]
[420508971,1776184250822,-535.72,0.00012328,2]
[420508972,1776184250834,-151.0,0.00012328,2]
[420508973,1776184250846,-151.0,0.00012328,2]
[420508974,1776184250855,-500.0,0.00012328,2]
[420508975,1776184250864,-500.0,0.00012328,2]
[420508976,1776184250873,-500.0,0.00012328,2]
[420508977,1776184250890,-500.0,0.00012328,2]
[420508978,1776184250899,-500.0,0.00012328,2]
[420508979,1776184250909,-500.0,0.00012328,2]
[420508980,1776184250919,-500.0,0.00012328,2]
[420508981,1776184250933,-6100.67,0.00012328,2]
[420508982,1776184250944,-500.0,0.00012328,2]
[420508983,1776184250953,-869.08,0.00012328,2]
[420508984,1776184250964,-6021.99,0.00012328,2]
[420508985,1776184250979,-500.0,0.00012328,2]
[420508986,1776184250990,-500.0,0.00012328,2]
[420508987,1776184251001,-500.0,0.00012328,2]
[420508988,1776184251014,-500.0,0.00012328,2]
[420508989,1776184251025,-4732.63,0.00012328,2]
[420508990,1776184251037,-500.0,0.00012328,2]
[420508991,1776184251052,-834.7,0.00012328,2]
[420508992,1776184251065,-500.0,0.00012328,2]
[420508993,1776184251077,-500.0,0.00012328,2]
[420508994,1776184251091,-1248.02,0.00012328,2]
[420508995,1776184251114,-564.81648961,0.00012328,2]
[420508996,1776184251123,-4215.81,0.00012328,2]
[420508997,1776184251156,-3888.18,0.00012328,2]
[420508998,1776184251166,-5867.09,0.00012328,2]
[420508999,1776184251207,-500.0,0.00012328,2]
[420509000,1776184251237,-18904.59,0.00012328,2]
[420509001,1776184251250,-1695.67,0.00012328,2]
[420509002,1776184251263,-5451.5,0.00012328,2]
[420509003,1776184251277,-500.0,0.00012328,2]
[420509004,1776184251291,-6941.33,0.00012328,2]
[420509005,1776184251305,-500.0,0.00012328,2]
[420509006,1776184251320,-1019.11,0.00012328,2]
[420509007,1776184251337,-14705.82,0.00012328,2]
[420509008,1776184251350,-500.0,0.00012328,2]
[420509009,1776184251378,-500.0,0.00012328,2]
[420509010,1776184251390,-13775.47,0.00012328,2]
[420509011,1776184251423,-500.0,0.00012328,2]
[420509012,1776184251434,-500.0,0.00012328,2]
[420509013,1776184251462,-10354.93,0.00012328,2]
[420509014,1776184251479,-500.0,0.00012328,2]
[420509015,1776184251512,-6089.32,0.00012328,2]
[420509016,1776184251529,-3217.7,0.00012328,2]
[420509017,1776184251557,-500.0,0.00012328,2]
[420509018,1776184251573,-500.0,0.00012328,2]
[420509019,1776184251606,-7417.02,0.00012328,2]
[420509020,1776184251626,-819.79,0.00012328,2]
[420509021,1776184251666,-1900.53,0.00012328,2]
[420509022,1776184251705,-500.0,0.00012328,2]
[420509023,1776184251720,-500.0,0.00012328,2]
[420509024,1776184251757,-1577.97312869,0.00012368,2]
[420509025,1776184251775,-1500.0,0.00012368,2]
[420509026,1776184251806,-1500.0,0.00012368,2]
[420509027,1776184251830,-1500.0,0.00012368,2]
[420509028,1776184251882,-1500.0,0.00012368,2]
[420509029,1776184251947,-6791.4554121,0.00012476,2]
[420509030,1776184251995,-6854.08223085,0.00012602,2]
[420509031,1776184252023,-1262.8825,0.00012602,2]
[420509032,1776184252039,-500.0,0.00012602,2]
[420509033,1776184252059,-500.0,0.00012602,2]
[420509034,1776184252079,-500.0,0.00012602,2]
[420509035,1776184252091,-500.0,0.00012602,2]
[420509036,1776184252112,-4309.33,0.00012602,2]
[420509037,1776184252123,-500.0,0.00012602,2]
[420509038,1776184252135,-500.0,0.00012602,2]
[420509039,1776184252152,-1000.0,0.00012602,2]
[420509040,1776184252162,-227.29019799,0.00012602,2]
[420509041,1776184252175,-1128.7,0.00012602,2]
[420509042,1776184252185,-500.0,0.00012602,2]
[420509043,1776184252202,-654.69,0.00012602,2]
[420509044,1776184252215,-500.0,0.00012602,2]
[420509045,1776184252226,-689.6,0.00012602,2]
[420509046,1776184252237,-813.93,0.00012602,2]
[420509047,1776184252252,-500.0,0.00012602,2]
[420509048,1776184252264,-535.72,0.00012602,2]
[420509049,1776184252274,-164.82,0.00012602,2]
[420509050,1776184252287,-579.84,0.00012602,2]
[420509051,1776184252296,-500.0,0.00012602,2]
[420509052,1776184252307,-599.24,0.00012602,2]
[420509053,1776184252317,-500.0,0.00012602,2]
[420509054,1776184252332,-500.0,0.00012602,2]
[420509055,1776184252342,-500.0,0.00012602,2]
[420509056,1776184252352,-6100.67,0.00012602,2]
[420509057,1776184252362,-869.08,0.00012602,2]
[420509058,1776184252373,-6021.99,0.00012602,2]
[420509059,1776184252382,-500.0,0.00012602,2]
[420509060,1776184252392,-500.0,0.00012602,2]
[420509061,1776184252401,-500.0,0.00012602,2]
[420509062,1776184252411,-500.0,0.00012602,2]
[420509063,1776184252422,-4732.63,0.00012602,2]
[420509064,1776184252432,-500.0,0.00012602,2]
[420509065,1776184252442,-834.7,0.00012602,2]
[420509066,1776184252452,-500.0,0.00012602,2]
[420509067,1776184252463,-500.0,0.00012602,2]
[420509068,1776184252473,-1248.02,0.00012602,2]
[420509069,1776184252484,-4215.81,0.00012602,2]
[420509070,1776184252494,-3888.18,0.00012602,2]
[420509071,1776184252506,-5867.09,0.00012602,2]
[420509072,1776184252517,-500.0,0.00012602,2]
[420509073,1776184252527,-18904.59,0.00012602,2]
[420509074,1776184252536,-1695.67,0.00012602,2]
[420509075,1776184252547,-5451.5,0.00012602,2]
[420509076,1776184252556,-500.0,0.00012602,2]
[420509077,1776184252566,-500.0,0.00012602,2]
[420509078,1776184252575,-6941.33,0.00012602,2]
[420509079,1776184252585,-1019.11,0.00012602,2]
[420509080,1776184252595,-14705.82,0.00012602,2]
[420509081,1776184252604,-500.0,0.00012602,2]
[420509082,1776184252614,-500.0,0.00012602,2]
[420509083,1776184252624,-13775.47,0.00012602,2]
[420509084,1776184252634,-519.72,0.00012602,2]
[420509085,1776184252643,-500.0,0.00012602,2]
[420509086,1776184252652,-10354.93,0.00012602,2]
[420509087,1776184252663,-500.0,0.00012602,2]
[420509088,1776184252672,-6089.32,0.00012602,2]
[420509089,1776184252682,-2282.28682823,0.00012602,2]
[420509090,1776184252881,-935.41317177,0.00012602,2]
[420509091,1776184252891,-169.0806894,0.00012602,2]
[420509092,1776184252902,-500.0,0.00012602,2]
[420509093,1776184252913,-7417.02,0.00012602,2]
[420509094,1776184252924,-819.79,0.00012602,2]
[420509095,1776184252934,-1900.53,0.00012602,2]
[420509096,1776184252944,-500.0,0.00012602,2]
[420509097,1776184252953,-399.91961442,0.00012602,2]
[420509098,1776184252966,-100.08038558,0.00012602,2]
[420509099,1776184252976,-1530.91961442,0.00012785,2]
[420509100,1776184253067,-2117.33197332,9.501e-05,2]
[420509101,1776184253110,-2882.66802668,9.501e-05,2]
[420509102,1776184253120,-350.23204889,0.00012785,2]
[420509103,1776184254709,-500.0,0.00010958,2]
[420509104,1776184254724,-517.26027699,0.00012785,2]
[420509105,1776184254744,-425.99003096,0.00012876,2]
[420509106,1776184282471,-2564.46903667,9.702e-05,2]
[420509108,1776184472589,2336.7238274,0.00027397,120]
[420509109,1776184566601,3049.8592,0.00027397,120]
[420509111,1776185432528,-291.85012365,8.353e-05,5]
[420509112,1776185432637,-809.56186714,8.353e-05,5]
[420509156,1776185438894,-3898.58800921,8.353e-05,5]
[420509157,1776185438929,-2036.69261003,8.437e-05,2]
[420509158,1776185438966,-282.02723874,8.498e-05,2]
[420509159,1776185438983,-480.0,8.536e-05,2]
[420509160,1776185439037,-1907.0185727,8.537e-05,2]
[420509161,1776185439061,-1751.37996223,8.537e-05,2]
[420509162,1776185439087,-431.87541586,8.537e-05,2]
[420509163,1776185439100,-3167.5868567,8.713e-05,2]
[420509164,1776185439144,-473.57376399,8.713e-05,2]
[420509220,1776185444184,-37.0853162,8.713e-05,2]
[420509221,1776185444218,-819.51562325,8.713e-05,2]
[420509541,1776185937733,5032.55,0.00027397,120]
[420509547,1776186150186,20937.3333978,0.00027397,120]
[420509711,1776186638341,-5000.0,7.644e-05,5]
[420509713,1776186638371,-276.38669396,7.82e-05,2]
[420509715,1776186638390,-2045.76130604,8.713e-05,2]
[420509717,1776186638403,-1861.5008149,8.713e-05,2]
[420509719,1776186638416,-4339.27697512,8.713e-05,2]
[420509720,1776186638431,-300.0,8.886e-05,2]
[420509722,1776186638443,-300.0,8.886e-05,2]
[420509723,1776186638453,-128.78769269,8.886e-05,2]
[420509726,1776186638466,-171.21230731,8.886e-05,2]
[420509728,1776186638484,-300.0,8.886e-05,2]
[420509729,1776186638494,-300.0,8.886e-05,2]
[420509731,1776186638505,-300.0,8.886e-05,2]
[420509733,1776186638518,-300.0,8.886e-05,2]
[420509735,1776186638532,-300.0,8.886e-05,2]
[420509738,1776186638542,-300.0,8.886e-05,2]
[420509739,1776186638553,-300.0,8.886e-05,2]
[420509742,1776186638574,-300.0,8.886e-05,2]
[420509743,1776186638589,-300.0,8.886e-05,2]
[420509745,1776186638604,-300.0,8.886e-05,2]
[420509747,1776186638619,-300.0,8.886e-05,2]
[420509749,1776186638630,-300.0,8.886e-05,2]
[420509751,1776186638642,-177.200627,9.051e-05,2]
[420509753,1776186638659,-366.37308605,9.453e-05,2]
[420509755,1776186638670,-500.0,9.453e-05,2]
[420509757,1776186638683,-500.0,9.453e-05,2]
[420509759,1776186638699,-208.96045398,9.453e-05,2]
[420509764,1776186638758,-291.03954602,9.453e-05,2]
[420509766,1776186638779,-500.0,9.453e-05,2]
[420509768,1776186638795,-498.66687334,9.469e-05,2]
[420509770,1776186638830,-1.33312666,9.469e-05,2]
[420509772,1776186638923,-500.0,9.469e-05,2]
[420509774,1776186639054,-309.0739309,9.469e-05,2]
[420509776,1776186639135,-501.88330976,9.469e-05,2]
[420509778,1776186639155,-500.0,9.469e-05,2]
[420509780,1776186639174,-500.0,9.469e-05,2]
[420509783,1776186639194,-500.0,9.469e-05,2]
[420509785,1776186639205,-500.0,9.469e-05,2]
[420509786,1776186639217,-648.95626985,9.47e-05,2]
[420509788,1776186639235,-500.0,9.47e-05,2]
[420509790,1776186639252,-393.61106161,9.47e-05,2]
[420509792,1776186639261,-500.0,9.47e-05,2]
[420509794,1776186639284,-500.0,9.47e-05,2]
[420509796,1776186639301,-541.39094191,9.47e-05,2]
[420509798,1776186639316,-500.0,9.47e-05,2]
[420509800,1776186639346,-500.0,9.47e-05,2]
[420509802,1776186639367,-500.0,9.47e-05,2]
[420509804,1776186639394,-500.0,9.47e-05,2]
[420509806,1776186639422,-500.0,9.47e-05,2]
[420509808,1776186639432,-500.0,9.47e-05,2]
[420509810,1776186639443,-215.5526717,9.47e-05,2]
[420509812,1776186639457,-284.4473283,9.47e-05,2]
[420509814,1776186639467,-500.0,9.47e-05,2]
[420509816,1776186639477,-500.0,9.47e-05,2]
[420509818,1776186639487,-500.0,9.47e-05,2]
[420509820,1776186639499,-500.0,9.47e-05,2]
[420509822,1776186639509,-500.0,9.47e-05,2]
[420509824,1776186639519,-500.0,9.47e-05,2]
[420509826,1776186639528,-342.25625745,9.47e-05,2]
[420510114,1776186950823,1000.0,8.771e-05,30]
[420510115,1776186950880,1000.0,8.771e-05,30]
[420510116,1776186950945,800.18418575,8.771e-05,30]
[420510117,1776186952705,199.81581425,8.816e-05,30]
[420510118,1776186952731,1000.0,8.816e-05,30]
[420510119,1776186952756,1000.0,8.816e-05,30]
[420510120,1776186952782,600.3683715,8.816e-05,30]
[420510121,1776186954602,399.6316285,8.86e-05,30]
[420510122,1776186954646,2400.55255725,8.86e-05,30]
[420510123,1776186955915,2800.18418575,8.861e-05,30]
[420510124,1776186957565,2800.18418575,0.00022741,120]
[420510129,1776187356892,10000.0,0.00027397,120]
[420510130,1776187372580,10000.0,0.00027397,120]
[420510131,1776187407555,10000.0,0.00027397,120]
[420510132,1776187424403,10000.0,0.00027397,120]
[420510133,1776187440903,10000.0,0.00027397,120]
[420510134,1776187633337,10000.0,0.00027397,120]
[420510135,1776187740553,10000.0,0.00027397,120]
[420510178,1776187838501,-5000.0,8.241e-05,5]
[420510179,1776187838514,-537.0,8.324e-05,2]
[420510180,1776187838527,-2564.46903667,8.324e-05,2]
[420510181,1776187838537,-612.9855,8.509e-05,2]
[420510182,1776187838550,-270.85896009,8.509e-05,2]
[420510183,1776187838561,-155.34997501,8.886e-05,2]
[420510184,1776187838570,-262.31007143,8.903e-05,2]
[420510185,1776187838583,-500.0,8.903e-05,2]
[420510186,1776187838596,-265.69895429,8.903e-05,2]
[420510187,1776187838605,-500.0,8.903e-05,2]
[420510188,1776187838616,-500.0,8.903e-05,2]
[420510189,1776187838634,-500.0,8.903e-05,2]
[420510190,1776187838644,-12206.45527311,8.926e-05,2]
[420510191,1776187838708,-55785.85403462,8.926e-05,2]
[420510193,1776187838741,-530152.54284802,8.926e-05,2]
[420510194,1776187838758,-2990.0,8.926e-05,2]
[420510195,1776187838769,-325.80027339,8.926e-05,2]
[420510287,1776187843511,-1049.82969723,8.926e-05,2]
[420510298,1776187846420,-16415.81234573,8.926e-05,2]
[420510299,1776187846590,-1365.08688612,8.926e-05,2]
[420510300,1776187881339,-3239.9026803,8.837e-05,2]
[420510301,1776188032472,14116.59162033,0.00027105,120]
[420510302,1776188141143,500.0,0.00027397,120]
[420510303,1776188367218,10000.0,0.00026301,120]
[420510304,1776188387808,10000.0,0.00026301,120]
[420510305,1776188404357,10000.0,0.00026301,120]
[420510306,1776188431882,10000.0,0.00025753,120]
[420510307,1776188447729,400.0,8.487e-05,30]
[420510308,1776188449004,400.0,8.573e-05,30]
[420510309,1776188450148,10000.0,0.00025753,120]
[420510310,1776188450186,400.0,8.66e-05,30]
[420510311,1776188451604,400.0,8.661e-05,30]
[420510312,1776188453004,400.0,0.0002267,120]
[420510313,1776188467745,6049.0,0.00025205,120]
[420510435,1776189038778,-5000.0,8.235e-05,5]
[420510436,1776189038791,-215.1488,8.318e-05,2]
[420510437,1776189038806,-215.1488,8.318e-05,2]
[420510438,1776189038823,-537.0,8.318e-05,2]
[420510439,1776189038838,-1200.0,8.4e-05,2]
[420510440,1776189038855,-257.0,8.401e-05,2]
[420510441,1776189038898,-285.0,8.401e-05,2]
[420510442,1776189038948,-300.0,8.401e-05,2]
[420510443,1776189039189,-21514.8724,8.402e-05,2]
[420510444,1776189039331,-265.44178088,8.466e-05,2]
[420510445,1776189039397,-453.235766,8.473e-05,2]
[420510446,1776189039417,-500.0,8.703e-05,2]
[420510447,1776189039434,-500.0,8.703e-05,2]
[420510448,1776189039445,-500.0,8.703e-05,2]
[420510449,1776189039456,-500.0,8.703e-05,2]
[420510450,1776189039472,-500.0,8.723e-05,2]
[420510451,1776189039712,-500.0,8.723e-05,2]
[420510452,1776189039729,-500.0,8.723e-05,2]
[420510453,1776189039777,-491.19398935,8.723e-05,2]
[420510454,1776189039819,-275.52774312,8.724e-05,2]
[420510455,1776189039839,-500.0,8.724e-05,2]
[420510456,1776189039863,-454.26938889,8.724e-05,2]
[420510457,1776189039875,-500.0,8.724e-05,2]
[420510458,1776189039906,-500.0,8.724e-05,2]
[420510459,1776189039919,-500.0,8.724e-05,2]
[420510460,1776189039955,-500.0,8.724e-05,2]
[420510461,1776189039981,-500.0,8.724e-05,2]
[420510462,1776189040017,-500.0,8.724e-05,2]
[420510463,1776189040048,-500.0,8.724e-05,2]
[420510465,1776189040072,-500.0,8.724e-05,2]
[420510467,1776189040081,-500.0,8.724e-05,2]
[420510469,1776189040110,-500.0,8.724e-05,2]
[420510470,1776189040122,-641.19461932,8.724e-05,2]
[420510471,1776189040132,-300.0,8.724e-05,2]
[420510473,1776189040155,-211.15113841,8.725e-05,2]